bitfinex/quotes_BTCUSD_20250408
["timestamp","ask_amount","ask_price","bid_price","bid_amount"]
[1744129598929,0.34,77951.0,77948.0,0.256579]
[1744129599179,0.2570297,77952.0,77948.0,0.25658]
[1744129599389,0.2570297,77952.0,77949.0,0.12625864]
[1744129599390,0.0004617,77952.0,77949.0,0.12625864]
[1744129599588,0.0004617,77952.0,77932.0,0.17912]
[1744129599589,0.012828,77950.0,77945.0,0.25659]
[1744129599834,0.0004617,77952.0,77950.0,0.012828]
[1744129600052,0.0004617,77952.0,77947.0,0.012829]
[1744129600257,0.002,77949.0,77948.0,0.256581]
[1744129600471,0.012828,77949.0,77944.0,0.269413]
[1744129600674,0.256584,77948.0,77944.0,0.39567164]
[1744129600886,0.012829,77947.0,77944.0,0.12625864]
[1744129601085,0.0132897,77952.0,77944.0,0.12625864]
[1744129601332,0.256576,77950.0,77948.0,0.001]
[1744129601557,0.256578,77949.0,77948.0,0.001]
[1744129601773,0.2570357,77952.0,77947.0,0.012829]
[1744129602004,0.2570357,77952.0,77951.0,0.269399]
[1744129602005,0.0004617,77952.0,77951.0,0.269399]
[1744129602227,0.0004617,77952.0,77951.0,0.39565764]
[1744129603319,0.0014617,77952.0,77951.0,0.39565764]
[1744129603531,0.0014617,77952.0,77951.0,0.40065764]
[1744129603943,0.0014617,77952.0,77951.0,0.39565764]
[1744129603945,7e-07,77952.0,77951.0,0.41019849]
[1744129604140,0.00018648,77968.0,77965.0,0.269351]
[1744129604350,0.00018648,77968.0,77965.0,0.39560964]
[1744129604585,0.00018648,77968.0,77965.0,0.12625864]
[1744129604753,0.01301148,77968.0,77965.0,0.1356857]
[1744129604921,0.256519,77967.0,77965.0,0.1356857]
[1744129605149,0.012826,77965.0,77958.0,0.012827]
[1744129605403,0.2696834,77966.0,77956.0,0.188507]
[1744129605404,0.269368,77960.0,77959.0,0.12625864]
[1744129605711,0.269357,77963.0,77960.0,0.25654]
[1744129605927,0.256526,77965.0,77962.0,0.256535]
[1744129606150,0.34,77965.0,77963.0,0.256531]
[1744129606376,0.352826,77965.0,77961.0,0.00938758]
[1744129606565,0.25653,77964.0,77961.0,0.00938758]
[1744129606797,0.25653,77964.0,77960.0,0.256538]
[1744129607017,0.25653,77964.0,77961.0,0.256535]
[1744129607872,0.012826,77964.0,77959.0,0.12825864]
[1744129608085,0.269368,77960.0,77959.0,0.002]
[1744129608318,0.609368,77960.0,77959.0,0.002]
[1744129608788,0.25656,77955.0,77950.0,0.256574]
[1744129609012,0.256528,77964.0,77960.0,0.012827]
[1744129609217,0.596535,77962.0,77961.0,0.001]
[1744129609637,0.596538,77961.0,77956.0,0.269379]
[1744129609850,0.0003364,77970.0,77965.0,0.012826]
[1744129610051,0.0003364,77970.0,77965.0,0.269351]
[1744129610266,0.0003364,77970.0,77965.0,0.39560964]
[1744129610680,0.0003364,77970.0,77965.0,0.38278364]
[1744129610878,0.2700732,77969.0,77963.0,0.012826]
[1744129611092,0.0007362,77969.0,77965.0,0.269351]
[1744129611502,0.25670248,77968.0,77963.0,0.39561564]
[1744129611778,0.0013354,77966.0,77965.0,0.256525]
[1744129611996,0.0013354,77966.0,77963.0,0.38278964]
[1744129612195,0.0033354,77966.0,77965.0,0.256525]
[1744129612403,0.0033354,77966.0,77965.0,0.269351]
[1744129612404,0.0003354,77966.0,77965.0,0.269351]
[1744129612602,0.0003354,77966.0,77965.0,0.39560964]
[1744129612826,0.0013354,77966.0,77965.0,0.39560964]
[1744129613491,0.0033354,77966.0,77965.0,0.39560964]
[1744129613677,0.0003354,77966.0,77965.0,0.39560964]
[1744129614239,0.012826,77961.0,77956.0,0.00954285]
[1744129614451,0.269368,77960.0,77955.0,0.256555]
[1744129614670,0.256553,77957.0,77953.0,0.012828]
[1744129614884,0.256544,77960.0,77954.0,0.12625864]
[1744129615128,0.0003364,77970.0,77965.0,0.269351]
[1744129615372,0.0003364,77970.0,77965.0,0.39660964]
[1744129615783,0.0003364,77970.0,77965.0,0.81150964]
[1744129616209,0.2572512,77969.0,77965.0,0.81150964]
[1744129616424,0.0007362,77969.0,77965.0,0.81150964]
[1744129616878,0.0007362,77969.0,77965.0,0.81250964]
[1744129617532,0.0007362,77969.0,77965.0,0.81550964]
[1744129622511,0.0003362,77971.0,77970.0,0.269333]
[1744129622512,6.8e-07,77971.0,77970.0,0.269333]
[1744129622726,6.8e-07,77971.0,77970.0,0.81149164]
[1744129623161,6.8e-07,77971.0,77970.0,0.87503249]
[1744129623639,0.0003362,77972.0,77970.0,0.87503249]
[1744129623640,8.8e-07,77972.0,77971.0,0.28387085]
[1744129623862,8.8e-07,77972.0,77971.0,0.41012949]
[1744129624308,8.8e-07,77972.0,77971.0,0.45682949]
[1744129625400,0.0003354,77996.0,77995.0,0.00520872]
[1744129625621,0.00075599,77996.0,77995.0,0.40327857]
[1744129625826,0.00075599,77996.0,77995.0,0.81661436]
[1744129626038,0.00075599,77996.0,77995.0,0.83115521]
[1744129626243,0.00075599,77996.0,77995.0,0.81661436]
[1744129627330,0.00075599,77996.0,77995.0,0.82640734]
[1744129627784,0.00675599,77996.0,77995.0,0.82640734]
[1744129628666,0.00075599,77996.0,77995.0,0.82640734]
[1744129628880,0.00075599,77996.0,77995.0,0.82740734]
[1744129629098,0.00075599,77996.0,77995.0,0.82640734]
[1744129629938,0.00075599,77996.0,77995.0,0.82940734]
[1744129630375,0.00075599,77996.0,77995.0,0.82640734]
[1744129630843,0.00075599,77996.0,77995.0,0.83440734]
[1744129631714,3.9e-07,78001.0,78000.0,0.33277085]
[1744129631926,0.00012648,78001.0,78000.0,0.45902949]
[1744129632162,4.8e-07,78001.0,78000.0,1.21492949]
[1744129633237,0.01232654,78038.0,78028.0,0.269133]
[1744129633452,0.302969,78043.0,78028.0,0.39539164]
[1744129633453,0.000526,78029.0,78028.0,0.39539164]
[1744129634509,0.000526,78029.0,78028.0,0.12625864]
[1744129634510,0.25684,78029.0,78028.0,0.12625864]
[1744129634723,0.003526,78029.0,78028.0,0.38257664]
[1744129634932,0.012814,78037.0,78032.0,0.012815]
[1744129635153,0.012814,78037.0,78031.0,0.012815]
[1744129635154,0.013212,78050.0,78041.0,0.269088]
[1744129635360,0.34,78048.0,78041.0,0.39547264]
[1744129635572,0.000335,78049.0,78041.0,0.39547264]
[1744129636237,1e-06,78047.0,78046.0,0.28361185]
[1744129636456,1e-06,78047.0,78046.0,0.82577049]
[1744129636673,1e-06,78050.0,78049.0,0.012812]
[1744129636883,1e-06,78050.0,78049.0,0.56951149]
[1744129637335,1e-06,78050.0,78049.0,0.55497064]
[1744129637537,0.0004,78059.0,78058.0,0.269029]
[1744129637771,1e-06,78059.0,78058.0,1.16572849]
[1744129638196,0.000335,78074.0,78070.0,0.28352985]
[1744129638433,0.000335,78074.0,78070.0,0.56430103]
[1744129638668,0.000335,78074.0,78070.0,0.14865003]
[1744129638889,0.000335,78074.0,78070.0,0.13584103]
[1744129639112,0.000335,78074.0,78070.0,0.14865003]
[1744129639328,0.00029352,78071.0,78070.0,0.16575259]
[1744129639546,0.00029352,78071.0,78070.0,0.16319088]
[1744129639786,0.00029352,78071.0,78070.0,0.17572227]
[1744129640461,0.00029352,78071.0,78070.0,0.18328355]
[1744129640688,0.00029352,78071.0,78070.0,0.18072227]
[1744129640914,0.00029352,78071.0,78070.0,0.16819088]
[1744129641134,0.00029352,78071.0,78070.0,0.32585003]
[1744129642586,0.00029352,78071.0,78070.0,0.31304103]
[1744129643010,0.00029352,78071.0,78070.0,0.18678239]
[1744129643634,0.00029352,78071.0,78070.0,0.31304103]
[1744129644280,0.00029352,78071.0,78070.0,0.33707222]
[1744129644545,0.00029352,78071.0,78070.0,0.34988122]
[1744129645000,0.00029352,78071.0,78070.0,0.34987939]
[1744129645456,0.00029352,78071.0,78070.0,0.16487039]
[1744129645668,0.00029352,78071.0,78070.0,0.17767939]
[1744129646332,0.256158,78077.0,78072.0,0.256172]
[1744129646563,0.00041984,78075.0,78073.0,0.12625864]
[1744129646808,0.00041984,78075.0,78074.0,0.012808]
[1744129647009,0.00041984,78075.0,78074.0,0.13906664]
[1744129647225,0.00041984,78075.0,78074.0,0.162396]
[1744129647929,0.26939084,78075.0,78074.0,0.02402936]
[1744129648142,0.00041984,78075.0,78074.0,0.02402936]
[1744129648356,0.25658384,78075.0,78073.0,0.4159]
[1744129648585,0.25658384,78075.0,78074.0,0.002]
[1744129649247,0.00041984,78075.0,78074.0,0.002]
[1744129649960,0.00041984,78075.0,78074.0,0.012808]
[1744129650154,0.00041984,78075.0,78074.0,0.268975]
[1744129650918,0.00041984,78075.0,78073.0,0.38242764]
[1744129651159,0.00041984,78075.0,78074.0,0.268975]
[1744129651406,0.00041984,78075.0,78074.0,0.39523364]
[1744129651642,0.00041984,78075.0,78074.0,0.41923114]
[1744129652143,0.26939084,78075.0,78074.0,0.0239975]
[1744129652348,0.60939084,78075.0,78074.0,0.0239975]
[1744129652560,0.256262,78045.0,78043.0,0.4159]
[1744129652772,0.256262,78045.0,78041.0,0.269087]
[1744129652773,0.269075,78045.0,78044.0,0.12625864]
[1744129652983,0.269075,78045.0,78044.0,0.02399819]
[1744129653189,0.269067,78048.0,78044.0,0.02399819]
[1744129653400,0.352811,78056.0,78048.0,0.012812]
[1744129653603,0.2562,78064.0,78036.0,0.02399819]
[1744129653604,0.0473,78074.0,78064.0,0.01281]
[1744129653807,0.012809,78069.0,78061.0,0.01281]
[1744129654008,0.012809,78068.0,78062.0,0.12625864]
[1744129654230,0.25619,78067.0,78062.0,0.12638466]
[1744129654442,0.269005,78066.0,78062.0,0.12638466]
[1744129654654,0.256195,78066.0,78062.0,0.38258966]
[1744129655060,0.256203,78063.0,78062.0,0.12638466]
[1744129655279,0.01228019,78066.0,78062.0,0.00012602]
[1744129655489,0.256173,78072.0,78063.0,0.12625864]
[1744129655701,0.0451,78076.0,78070.0,0.012809]
[1744129655910,0.25617,78073.0,78069.0,0.256177]
[1744129656119,0.25617,78073.0,78067.0,0.268996]
[1744129656120,0.256174,78072.0,78067.0,0.268996]
[1744129656327,0.260167,78074.0,78068.0,0.012809]
[1744129656641,0.001,78072.0,78071.0,0.012808]
[1744129656787,0.001,78072.0,78071.0,0.268985]
[1744129656788,0.005,78072.0,78071.0,0.268985]
[1744129657215,0.009,78072.0,78071.0,0.268985]
[1744129657405,0.009,78072.0,78071.0,0.39524364]
[1744129657621,0.001,78074.0,78073.0,0.268978]
[1744129657825,0.001,78074.0,78073.0,0.39523664]
[1744129658794,0.257167,78074.0,78071.0,0.001]
[1744129659017,0.256166,78075.0,78071.0,0.12725864]
[1744129659234,0.256166,78075.0,78072.0,0.25617]
[1744129659452,0.256156,78078.0,78074.0,0.268972]
[1744129659672,0.256158,78077.0,78074.0,0.268972]
[1744129659882,0.012807,78080.0,78077.0,0.256157]
[1744129659883,0.256148,78080.0,78077.0,0.256157]
[1744129660093,0.256151,78079.0,78075.0,0.25616]
[1744129660300,0.256138,78083.0,78075.0,0.012808]
[1744129660523,0.0451,78088.0,78083.0,0.012806]
[1744129660734,0.0004,78089.0,78087.0,0.256124]
[1744129660939,0.0004,78089.0,78084.0,0.12625864]
[1744129661151,0.256519,78089.0,78086.0,0.256124]
[1744129661392,0.256519,78089.0,78084.0,0.13906464]
[1744129661603,0.0004,78089.0,78084.0,0.13906464]
[1744129661810,0.0004,78089.0,78085.0,0.268934]
[1744129662019,0.00081984,78089.0,78087.0,0.256123]
[1744129662229,0.00081984,78089.0,78088.0,0.256121]
[1744129662466,0.00081984,78089.0,78087.0,0.256123]
[1744129662672,0.00081984,78089.0,78088.0,0.00971882]
[1744129662906,0.256172,78073.0,78068.0,0.012809]
[1744129663120,0.256153,78080.0,78076.0,0.256159]
[1744129663336,0.25614,78082.0,78079.0,0.25615]
[1744129663548,0.256137,78085.0,78081.0,0.256143]
[1744129663549,0.256131,78085.0,78081.0,0.256143]
[1744129663756,0.012806,78086.0,78079.0,0.00951218]
[1744129663967,0.256134,78084.0,78079.0,0.256144]
[1744129664196,0.256134,78084.0,78080.0,0.256144]
[1744129664428,0.256134,78084.0,78079.0,0.256144]
[1744129664429,0.59694384,78089.0,78084.0,0.256134]
[1744129664643,0.00081984,78089.0,78086.0,0.012806]
[1744129664858,0.00081984,78089.0,78088.0,0.268927]
[1744129665290,0.00081984,78089.0,78088.0,0.39518564]
[1744129666504,0.00381984,78089.0,78088.0,0.39618564]
[1744129667098,0.00081984,78089.0,78088.0,0.39618564]
[1744129668598,0.00181984,78089.0,78088.0,0.39618564]
[1744129670637,0.00181984,78089.0,78088.0,0.12725864]
[1744129670853,0.00181984,78089.0,78088.0,0.38337964]
[1744129671066,0.00181984,78089.0,78088.0,0.39618564]
[1744129671971,0.00181984,78089.0,78088.0,0.82662649]
[1744129672887,0.00181984,78089.0,78088.0,0.85052363]
[1744129673710,0.00181984,78089.0,78088.0,0.83888817]
[1744129675532,8.4e-07,78089.0,78088.0,0.83888817]
[1744129675773,8.4e-07,78089.0,78088.0,0.88878817]
[1744129676214,8.4e-07,78089.0,78088.0,0.99486732]
[1744129676427,8.4e-07,78089.0,78088.0,0.82434732]
[1744129676649,8.4e-07,78089.0,78088.0,0.99486732]
[1744129676857,0.0004,78100.0,78099.0,0.268889]
[1744129677056,0.25660688,78100.0,78099.0,0.1357917]
[1744129677289,0.25660688,78100.0,78099.0,0.00953306]
[1744129677504,0.256085,78099.0,78095.0,0.256091]
[1744129677716,0.256091,78098.0,78096.0,0.12625864]
[1744129677929,0.25660688,78100.0,78098.0,0.268889]
[1744129677930,0.00052588,78100.0,78098.0,0.268889]
[1744129678146,0.00052588,78100.0,78099.0,0.39514764]
[1744129678359,0.00052588,78100.0,78099.0,0.38234364]
[1744129678581,0.00252588,78100.0,78099.0,0.39514764]
[1744129678799,0.00052588,78100.0,78099.0,0.39514764]
[1744129679228,0.00152588,78100.0,78099.0,0.39514764]
[1744129679667,0.00252588,78100.0,78099.0,0.39514764]
[1744129679887,0.00252588,78100.0,78099.0,0.40492763]
[1744129680596,0.27141088,78100.0,78099.0,0.00977999]
[1744129680807,0.256089,78098.0,78094.0,0.256101]
[1744129681023,0.256089,78098.0,78095.0,0.12625864]
[1744129681436,0.012804,78095.0,78085.0,0.012806]
[1744129681653,0.00252588,78100.0,78095.0,0.012804]
[1744129681901,0.2561,78095.0,78090.0,0.256111]
[1744129682110,0.2561,78095.0,78091.0,0.38236864]
[1744129682321,0.256103,78094.0,78091.0,0.12625864]
[1744129682528,0.2561,78095.0,78092.0,0.256106]
[1744129682743,0.256098,78095.0,78093.0,0.12625864]
[1744129682948,0.012805,78094.0,78083.0,0.012806]
[1744129683161,0.012805,78094.0,78086.0,0.256127]
[1744129683383,0.256115,78090.0,78087.0,0.256122]
[1744129683578,0.256115,78090.0,78086.0,0.256127]
[1744129683776,0.013805,78094.0,78085.0,0.012806]
[1744129683777,0.012805,78089.0,78085.0,0.004]
[1744129683991,0.268935,78086.0,78085.0,0.004]
[1744129684434,0.25614,78082.0,78081.0,0.11342117]
[1744129684644,0.268947,78082.0,78081.0,0.11342117]
[1744129684856,0.64294,78082.0,78081.0,0.11342117]
[1744129685061,0.655747,78082.0,78081.0,0.11342117]
[1744129685276,0.25617,78073.0,78072.0,0.11342117]
[1744129685707,0.0468,78082.0,78072.0,0.50866081]
[1744129685979,0.0468,78094.0,78091.0,0.256109]
[1744129686210,0.256127,78087.0,78084.0,0.256133]
[1744129686423,0.256125,78087.0,78085.0,0.12625864]
[1744129686652,0.256121,78088.0,78085.0,0.12625864]
[1744129686892,0.256127,78086.0,78085.0,0.12625864]
[1744129687389,0.0004,78100.0,78094.0,0.012805]
[1744129687618,0.256485,78100.0,78095.0,0.12625864]
[1744129687829,0.25661088,78100.0,78095.0,0.12625864]
[1744129688060,0.256093,78097.0,78095.0,0.12625864]
[1744129688602,0.256095,78096.0,78095.0,0.12625864]
[1744129688858,0.00052588,78100.0,78099.0,0.256085]
[1744129689093,0.00052588,78100.0,78099.0,0.39514764]
[1744129690321,0.00052588,78100.0,78099.0,0.40480561]
[1744129690787,0.00352588,78100.0,78099.0,0.40480561]
[1744129691486,0.25960688,78100.0,78099.0,0.13591661]
[1744129691698,0.00352588,78100.0,78099.0,0.13591661]
[1744129691927,0.25960688,78100.0,78099.0,0.13591661]
[1744129692148,0.00352588,78100.0,78099.0,0.13591661]
[1744129692368,0.00352588,78100.0,78099.0,0.40480561]
[1744129693017,0.00352588,78100.0,78099.0,0.13591661]
[1744129693240,0.00352588,78100.0,78099.0,0.40480561]
[1744129694589,0.00352588,78100.0,78099.0,0.39200161]
[1744129695246,0.25960688,78100.0,78099.0,0.13591661]
[1744129695461,0.00352588,78100.0,78099.0,0.39200161]
[1744129695680,0.00352588,78100.0,78099.0,0.40480561]
[1744129700548,0.00352588,78100.0,78099.0,0.13591661]
[1744129700771,0.25960688,78100.0,78099.0,0.00965797]
[1744129700981,0.27241088,78100.0,78099.0,0.00965797]
[1744129701209,0.256119,78089.0,78086.0,0.256125]
[1744129701446,0.34,78099.0,78091.0,0.012805]
[1744129701662,0.00352588,78100.0,78099.0,0.268889]
[1744129701879,0.256098,78096.0,78092.0,0.38236564]
[1744129702308,0.00352588,78100.0,78099.0,0.268889]
[1744129702515,0.00052588,78100.0,78098.0,0.256085]
[1744129702726,0.00052588,78100.0,78099.0,0.39514764]
[1744129702930,0.00052588,78100.0,78099.0,0.12625864]
[1744129703360,0.25660688,78100.0,78099.0,0.12625864]
[1744129703613,0.01332988,78100.0,78091.0,0.012805]
[1744129703827,0.256091,78098.0,78094.0,0.012805]
[1744129704036,0.256091,78099.0,78095.0,0.256098]
[1744129704243,0.001,78096.0,78094.0,0.256101]
[1744129704715,0.25609,78098.0,78095.0,0.256097]
[1744129704956,0.01332988,78100.0,78099.0,0.256085]
[1744129704957,0.00052588,78100.0,78099.0,0.256085]
[1744129705207,0.00052588,78100.0,78099.0,0.39514764]
[1744129706067,0.00052588,78100.0,78099.0,0.38234364]
[1744129706514,0.00052588,78100.0,78099.0,0.39514764]
[1744129707059,0.00052588,78100.0,78099.0,0.12625864]
[1744129707270,0.25609,78098.0,78095.0,0.256096]
[1744129707560,0.256092,78097.0,78096.0,0.12625864]
[1744129707956,0.00352588,78100.0,78096.0,0.12625864]
[1744129708203,0.25960788,78100.0,78097.0,0.256091]
[1744129708426,0.00052588,78100.0,78097.0,0.38234964]
[1744129708618,0.00052588,78100.0,78099.0,0.268889]
[1744129708875,0.00052588,78100.0,78099.0,0.39514764]
[1744129709133,0.00052588,78100.0,78099.0,0.38234364]
[1744129709365,0.00352588,78100.0,78099.0,0.38234364]
[1744129709549,0.00352588,78100.0,78099.0,0.39514764]
[1744129710194,0.256065,78105.0,78102.0,0.256074]
[1744129710398,0.0001675,78107.0,78106.0,0.256062]
[1744129710804,0.0001675,78107.0,78106.0,0.40474569]
[1744129712112,0.0031675,78107.0,78106.0,0.40574569]
[1744129712350,0.2720275,78107.0,78106.0,0.01062205]
[1744129712839,0.0031675,78107.0,78106.0,0.01062205]
[1744129713050,0.2592255,78107.0,78106.0,0.01062205]
[1744129713680,0.2720275,78107.0,78106.0,0.01062205]
[1744129713914,0.0031675,78107.0,78106.0,0.27948705]
[1744129714115,0.0031675,78107.0,78106.0,0.40574569]
[1744129721763,0.0031675,78107.0,78106.0,0.13688069]
[1744129721978,0.0031675,78107.0,78106.0,0.01062205]
[1744129721979,0.2592255,78107.0,78106.0,0.01062205]
[1744129722423,0.0031675,78107.0,78106.0,0.01062205]
[1744129722651,0.2720275,78107.0,78106.0,0.01062205]
[1744129722884,0.2720275,78107.0,78106.0,0.001]
[1744129723857,0.0031675,78107.0,78106.0,0.257062]
[1744129724275,0.2592255,78107.0,78106.0,0.001]
[1744129724488,0.2720275,78107.0,78106.0,0.001]
[1744129725190,0.0031675,78107.0,78106.0,0.001]
[1744129725418,0.0031675,78107.0,78106.0,0.39612364]
[1744129725645,0.0031675,78107.0,78106.0,0.40593487]
[1744129725874,0.0031675,78107.0,78106.0,0.39612364]
[1744129727511,0.2720275,78107.0,78106.0,0.001]
[1744129729046,0.26462299,78107.0,78106.0,0.001]
[1744129730384,0.82000299,78107.0,78106.0,0.001]
[1744129730631,0.68892099,78107.0,78106.0,0.001]
[1744129730856,0.60886,78107.0,78106.0,0.001]
[1744129734092,0.26886,78107.0,78106.0,0.001]
[1744129734542,0.2562235,78108.0,78106.0,0.001]
[1744129734543,0.0001675,78108.0,78106.0,0.001]
[1744129734786,0.0001675,78108.0,78107.0,0.26886]
[1744129735016,0.0001675,78108.0,78107.0,0.39511864]
[1744129735942,5e-07,78108.0,78107.0,0.81101864]
[1744129736188,0.0050005,78108.0,78107.0,0.88458011]
[1744129736624,0.0110005,78108.0,78107.0,0.88558011]
[1744129736847,0.0060005,78108.0,78107.0,0.88558011]
[1744129737080,5e-07,78108.0,78107.0,0.88958011]
[1744129737339,5e-07,78108.0,78107.0,1.23358011]
[1744129737557,5e-07,78108.0,78107.0,1.27518011]
[1744129738022,0.0010005,78108.0,78107.0,1.28118011]
[1744129738242,5e-07,78108.0,78107.0,1.27518011]
[1744129738473,5e-07,78108.0,78107.0,1.27018011]
[1744129738691,5e-07,78108.0,78107.0,1.27718011]
[1744129739338,5e-07,78108.0,78107.0,1.27018011]
[1744129739533,5e-07,78108.0,78107.0,1.28618011]
[1744129739764,0.0002474,78115.0,78114.0,0.268837]
[1744129739970,0.0002474,78115.0,78114.0,0.82553649]
[1744129741019,0.0002474,78115.0,78114.0,0.81099564]
[1744129741231,0.0002474,78115.0,78114.0,0.82553649]
[1744129741443,0.255962,78137.0,78133.0,0.255972]
[1744129741658,0.255917,78151.0,78141.0,0.255947]
[1744129741923,0.0002934,78148.0,78144.0,0.255937]
[1744129742148,0.0002934,78148.0,78147.0,0.268723]
[1744129742397,0.0002934,78148.0,78147.0,0.39498164]
[1744129743036,0.0022934,78148.0,78147.0,0.39498164]
[1744129743478,0.0042934,78148.0,78147.0,0.39498164]
[1744129743750,0.01699386,78148.0,78147.0,0.40479427]
[1744129743954,0.0002934,78148.0,78147.0,0.40479427]
[1744129744173,0.0022934,78148.0,78147.0,0.82069427]
[1744129744387,9e-07,78150.0,78149.0,0.62325785]
[1744129744605,9e-07,78150.0,78149.0,0.74951649]
[1744129744842,9e-07,78150.0,78149.0,0.39497564]
[1744129745305,0.012792,78171.0,78157.0,0.012794]
[1744129745533,0.255879,78162.0,78158.0,0.12625864]
[1744129745831,0.012794,78159.0,78158.0,0.12625864]
[1744129746080,0.012794,78159.0,78149.0,0.009]
[1744129746081,0.255918,78150.0,78149.0,0.009]
[1744129746344,0.255924,78148.0,78147.0,0.00981263]
[1744129746610,0.255967,78135.0,78134.0,0.4159]
[1744129746815,0.012797,78143.0,78127.0,0.012799]
[1744129746816,0.255942,78143.0,78132.0,0.012798]
[1744129747044,0.255961,78137.0,78134.0,0.13582151]
[1744129747258,0.255961,78137.0,78134.0,0.12625864]
[1744129747719,0.255965,78136.0,78134.0,0.12625864]
[1744129748134,0.012798,78135.0,78127.0,0.255992]
[1744129748379,0.255981,78131.0,78128.0,0.12625864]
[1744129748653,0.255981,78131.0,78112.0,0.268842]
[1744129748654,0.0128,78122.0,78112.0,0.268842]
[1744129748856,0.256045,78111.0,78103.0,0.180603]
[1744129749064,0.0128,78122.0,78109.0,0.0003354]
[1744129749281,0.42195906,78130.0,78109.0,0.0003354]
[1744129749282,0.595988,78129.0,78120.0,0.0128]
[1744129749527,0.256009,78123.0,78121.0,0.12625864]
[1744129749984,0.0128,78122.0,78121.0,0.12625864]
[1744129750424,0.256039,78113.0,78112.0,0.00961078]
[1744129750645,0.42195906,78122.0,78112.0,0.00961078]
[1744129750878,0.012799,78128.0,78120.0,0.268814]
[1744129751092,0.25601,78122.0,78118.0,0.268821]
[1744129751333,0.34104292,78129.0,78126.0,0.255996]
[1744129751584,0.00104292,78129.0,78128.0,0.012799]
[1744129751814,4.292e-05,78129.0,78128.0,0.39504764]
[1744129752292,4.292e-05,78129.0,78128.0,0.13905764]
[1744129752517,4.292e-05,78129.0,78128.0,0.12625864]
[1744129752731,4.292e-05,78129.0,78128.0,0.39504764]
[1744129752944,4.292e-05,78129.0,78128.0,0.38224864]
[1744129753374,0.00104292,78129.0,78128.0,0.12625864]
[1744129753557,0.26982792,78129.0,78128.0,0.12625864]
[1744129753991,0.0128,78119.0,78116.0,0.4159]
[1744129754226,0.256006,78123.0,78117.0,0.12625864]
[1744129754467,0.268806,78123.0,78117.0,0.12625864]
[1744129754700,0.256017,78120.0,78117.0,0.12625864]
[1744129754940,0.256022,78118.0,78117.0,0.12625864]
[1744129755216,0.268823,78118.0,78117.0,0.12625864]
[1744129755453,0.268823,78118.0,78116.0,0.4189]
[1744129755454,0.012801,78117.0,78116.0,0.4189]
[1744129755705,0.268827,78117.0,78116.0,0.4189]
[1744129755996,0.25602,78119.0,78111.0,0.012802]
[1744129756199,4.292e-05,78129.0,78122.0,0.268806]
[1744129756430,4.292e-05,78129.0,78125.0,0.255999]
[1744129756431,0.255991,78128.0,78125.0,0.255999]
[1744129756660,4.292e-05,78129.0,78123.0,0.13905864]
[1744129756661,4.292e-05,78129.0,78126.0,0.255995]
[1744129756884,4.292e-05,78129.0,78128.0,0.25599]
[1744129757112,4.292e-05,78129.0,78128.0,0.39504764]
[1744129758487,4.292e-05,78129.0,78128.0,0.56280764]
[1744129759128,0.00104292,78129.0,78128.0,0.56280764]
[1744129759552,4.292e-05,78129.0,78128.0,0.56280764]
[1744129759882,0.00104292,78129.0,78128.0,0.56280764]
[1744129760449,0.00104292,78129.0,78128.0,0.57080764]
[1744129760894,0.00104292,78129.0,78128.0,0.56280764]
[1744129761060,0.00104292,78129.0,78128.0,0.57180764]
[1744129761446,4.292e-05,78129.0,78128.0,0.98770764]
[1744129761684,4.292e-05,78129.0,78128.0,0.99670764]
[1744129762311,4.292e-05,78129.0,78128.0,1.00937914]
[1744129762533,4.292e-05,78129.0,78128.0,1.36391999]
[1744129762776,4.292e-05,78129.0,78128.0,1.45761999]
[1744129763906,4.292e-05,78129.0,78128.0,1.44861999]
[1744129764123,4.292e-05,78129.0,78128.0,1.45761999]
[1744129764337,4.292e-05,78129.0,78128.0,1.43961999]
[1744129764779,4.292e-05,78129.0,78128.0,1.45761999]
[1744129765261,4.292e-05,78129.0,78128.0,1.44861999]
[1744129765479,0.34,78171.0,78166.0,0.268657]
[1744129765706,0.00041965,78170.0,78169.0,0.268647]
[1744129765917,0.00041965,78170.0,78169.0,0.12625864]
[1744129766126,0.00041965,78170.0,78169.0,0.40448137]
[1744129767741,0.26906365,78170.0,78169.0,0.00957573]
[1744129768232,0.26906365,78170.0,78169.0,0.255855]
[1744129768233,0.00041965,78170.0,78169.0,0.255855]
[1744129768467,0.00041965,78170.0,78169.0,0.001]
[1744129768708,0.25627265,78170.0,78167.0,0.255861]
[1744129768960,0.00041965,78170.0,78168.0,0.255858]
[1744129769443,0.00041965,78170.0,78169.0,0.38211364]
[1744129769718,0.00041965,78170.0,78169.0,0.39490564]
[1744129769933,0.00041965,78170.0,78168.0,0.00963149]
[1744129770389,0.00041965,78170.0,78167.0,0.255861]
[1744129770607,0.00041965,78170.0,78169.0,0.255855]
[1744129770830,0.00041965,78170.0,78168.0,0.255859]
[1744129771195,0.00041965,78170.0,78169.0,0.255855]
[1744129771450,0.00041965,78170.0,78168.0,0.255859]
[1744129771657,0.255859,78168.0,78167.0,0.001]
[1744129771862,0.255859,78168.0,78149.0,1.014]
[1744129771863,0.255872,78164.0,78157.0,0.268685]
[1744129772234,0.255881,78162.0,78159.0,0.255888]
[1744129772460,0.012795,78153.0,78147.0,0.255925]
[1744129772646,0.012794,78157.0,78150.0,0.12625864]
[1744129772647,0.255911,78152.0,78150.0,0.12625864]
[1744129772867,0.255901,78155.0,78150.0,0.13905364]
[1744129773082,0.2559,78156.0,78151.0,0.268706]
[1744129773297,0.255902,78155.0,78152.0,0.25591]
[1744129773505,0.255911,78152.0,78150.0,0.12625864]
[1744129773713,0.255914,78151.0,78150.0,0.12625864]
[1744129774158,0.255928,78147.0,78141.0,0.268744]
[1744129774405,0.255927,78148.0,78143.0,0.012797]
[1744129774617,0.255927,78148.0,78144.0,0.12625864]
[1744129774838,0.012796,78144.0,78136.0,0.268759]
[1744129775053,0.012796,78144.0,78138.0,0.255956]
[1744129775263,0.012796,78144.0,78138.0,0.255957]
[1744129775417,0.34,78149.0,78141.0,0.002]
[1744129775621,0.255929,78147.0,78143.0,0.001]
[1744129775830,0.255929,78147.0,78143.0,0.12725864]
[1744129776032,0.255929,78147.0,78144.0,0.255937]
[1744129776239,0.255933,78146.0,78143.0,0.12725864]
[1744129776445,0.012795,78150.0,78143.0,0.12725864]
[1744129776651,0.255923,78149.0,78143.0,0.12725864]
[1744129776851,0.25594,78144.0,78141.0,0.257945]
[1744129777050,0.255939,78144.0,78141.0,0.257945]
[1744129777280,0.255939,78144.0,78141.0,0.255945]